[Event "Titled Tuesday Blitz February 14 Late 2023"]
[White "Sarana, Alexey"]
[Black "Golubka, Petro"]
[WhiteFideId "24133795"]
[BlackFideId "14114224"]
[WhiteElo "2685"]
[BlackElo "2371"]
[Result "1-0"]
[Round "05"]
[TimeControl "180+2"]
[Date "2023.02.14"]
[WhiteClock "0:00:08"]
[BlackClock "0:00:09"]

1. c4 {[%clk 0:02:57]}  e6 {[%clk 0:02:47]} 2. Nc3 {[%clk 0:02:55]}  d5 {[%clk 0:02:46]} 3. d4 {[%clk 0:02:56]}  Be7 {[%clk 0:02:46]} 4. Nf3 {[%clk 0:02:56]}  Nf6 {[%clk 0:02:45]} 5. Bf4 {[%clk 0:02:56]}  c5 {[%clk 0:02:42]} 6. dxc5 {[%clk 0:02:38]}  Bxc5 {[%clk 0:02:43]} 7. cxd5 {[%clk 0:02:34]}  Nxd5 {[%clk 0:01:48]} 8. Nxd5 {[%clk 0:02:30]}  exd5 {[%clk 0:01:49]} 9. Rc1 {[%clk 0:02:10]}  Bb4+ {[%clk 0:01:39]} 10. Bd2 {[%clk 0:02:08]}  Bxd2+ {[%clk 0:01:38]} 11. Qxd2 {[%clk 0:02:07]}  Nc6 {[%clk 0:01:39]} 12. e3 {[%clk 0:02:07]}  O-O {[%clk 0:01:38]} 13. Bb5 {[%clk 0:02:08]}  Ne7 {[%clk 0:01:35]} 14. O-O {[%clk 0:02:07]}  Be6 {[%clk 0:01:36]} 15. Qb4 {[%clk 0:02:02]}  a6 {[%clk 0:01:37]} 16. Bd3 {[%clk 0:02:02]}  Rb8 {[%clk 0:01:32]} 17. Rfd1 {[%clk 0:01:59]}  a5 {[%clk 0:01:23]} 18. Qh4 {[%clk 0:01:49]}  Ng6 {[%clk 0:01:22]} 19. Qxd8 {[%clk 0:01:48]}  Rfxd8 {[%clk 0:01:22]} 20. Rc7 {[%clk 0:01:34]}  Rdc8 {[%clk 0:01:17]} 21. Rdc1 {[%clk 0:01:08]}  Rxc7 {[%clk 0:01:05]} 22. Rxc7 {[%clk 0:01:09]}  Rc8 {[%clk 0:01:05]} 23. Rxc8+ {[%clk 0:01:09]}  Bxc8 {[%clk 0:01:05]} 24. Bxg6 {[%clk 0:01:09]}  hxg6 {[%clk 0:01:05]} 25. Kf1 {[%clk 0:01:10]}  Kf8 {[%clk 0:01:05]} 26. Ke1 {[%clk 0:01:01]}  Ke7 {[%clk 0:01:06]} 27. Kd2 {[%clk 0:01:02]}  f6 {[%clk 0:01:05]} 28. Kc3 {[%clk 0:01:01]}  g5 {[%clk 0:01:03]} 29. Kd4 {[%clk 0:01:00]}  Kd6 {[%clk 0:01:03]} 30. Nd2 {[%clk 0:01:01]}  Bf5 {[%clk 0:00:59]} 31. Kc3 {[%clk 0:01:01]}  b6 {[%clk 0:00:59]} 32. b4 {[%clk 0:01:00]}  axb4+ {[%clk 0:00:58]} 33. Kxb4 {[%clk 0:01:01]}  Kc6 {[%clk 0:00:56]} 34. Nb3 {[%clk 0:01:01]}  Bd7 {[%clk 0:00:55]} 35. Nd4+ {[%clk 0:00:59]}  Kd6 {[%clk 0:00:56]} 36. f4 {[%clk 0:00:58]}  gxf4 {[%clk 0:00:53]} 37. exf4 {[%clk 0:00:59]}  g5 {[%clk 0:00:53]} 38. g3 {[%clk 0:00:56]}  g4 {[%clk 0:00:48]} 39. Kc3 {[%clk 0:00:52]}  f5 {[%clk 0:00:48]} 40. Nb3 {[%clk 0:00:40]}  Ba4 {[%clk 0:00:45]} 41. Nd4 {[%clk 0:00:40]}  Bd7 {[%clk 0:00:44]} 42. Kb4 {[%clk 0:00:37]}  Kc7 {[%clk 0:00:44]} 43. Nc2 {[%clk 0:00:34]}  Kd6 {[%clk 0:00:42]} 44. a3 {[%clk 0:00:35]}  Be8 {[%clk 0:00:35]} 45. Nd4 {[%clk 0:00:20]}  Bd7 {[%clk 0:00:35]} 46. Kc3 {[%clk 0:00:20]}  Kc5 {[%clk 0:00:34]} 47. Nb3+ {[%clk 0:00:20]}  Kb5 {[%clk 0:00:33]} 48. Nd4+ {[%clk 0:00:16]}  Kc5 {[%clk 0:00:28]} 49. Kd3 {[%clk 0:00:16]}  Kd6 {[%clk 0:00:21]} 50. Nb3 {[%clk 0:00:05]}  Ba4 {[%clk 0:00:20]} 51. Nd4 {[%clk 0:00:05]}  Bd7 {[%clk 0:00:20]} 52. Kd2 {[%clk 0:00:06]}  Kc5 {[%clk 0:00:19]} 53. Kc3 {[%clk 0:00:06]}  Bc8 {[%clk 0:00:18]} 54. Nb3+ {[%clk 0:00:06]}  Kb5 {[%clk 0:00:18]} 55. Nc1 {[%clk 0:00:04]}  Ka4 {[%clk 0:00:18]} 56. Kb2 {[%clk 0:00:04]}  d4 {[%clk 0:00:17]} 57. Ne2 {[%clk 0:00:04]}  d3 {[%clk 0:00:17]} 58. Nc3+ {[%clk 0:00:04]}  Ka5 {[%clk 0:00:17]} 59. Kc1 {[%clk 0:00:04]}  Ba6 {[%clk 0:00:17]} 60. Kd2 {[%clk 0:00:03]}  Bc4 {[%clk 0:00:17]} 61. Kc1 {[%clk 0:00:02]}  b5 {[%clk 0:00:17]} 62. Kd2 {[%clk 0:00:02]}  b4 {[%clk 0:00:18]} 63. axb4+ {[%clk 0:00:02]}  Kxb4 {[%clk 0:00:19]} 64. Nd1 {[%clk 0:00:03]}  Kc5 {[%clk 0:00:15]} 65. Ne3 {[%clk 0:00:03]}  Be6 {[%clk 0:00:15]} 66. Kxd3 {[%clk 0:00:04]}  Bc8 {[%clk 0:00:16]} 67. Kc3 {[%clk 0:00:04]}  Be6 {[%clk 0:00:16]} 68. Kd3 {[%clk 0:00:05]}  Bc8 {[%clk 0:00:17]} 69. Nd1 {[%clk 0:00:05]}  Ba6+ {[%clk 0:00:16]} 70. Ke3 {[%clk 0:00:05]}  Bc4 {[%clk 0:00:15]} 71. Nf2 {[%clk 0:00:05]}  Kd5 {[%clk 0:00:15]} 72. Nd1 {[%clk 0:00:03]}  Kc5 {[%clk 0:00:15]} 73. Nf2 {[%clk 0:00:01]}  Kd5 {[%clk 0:00:15]} 74. h4 {[%clk 0:00:02]}  gxh3 {[%clk 0:00:15]} 75. Nxh3 {[%clk 0:00:03]}  Kc5 {[%clk 0:00:14]} 76. Ng5 {[%clk 0:00:03]}  Bd5 {[%clk 0:00:14]} 77. Nh7 {[%clk 0:00:02]}  Bg8 {[%clk 0:00:03]} 78. Nf6 {[%clk 0:00:03]}  Bf7 {[%clk 0:00:02]} 79. Nh7 {[%clk 0:00:02]}  Bg8 {[%clk 0:00:02]} 80. Ng5 {[%clk 0:00:03]}  Bd5 {[%clk 0:00:02]} 81. Nf3 {[%clk 0:00:03]}  Bxf3 {[%clk 0:00:02]} 82. Kxf3 {[%clk 0:00:04]}  Kd5 {[%clk 0:00:03]} 83. g4 {[%clk 0:00:04]}  fxg4+ {[%clk 0:00:04]} 84. Kxg4 {[%clk 0:00:05]}  Ke6 {[%clk 0:00:04]} 85. Kg5 {[%clk 0:00:06]}  Kf7 {[%clk 0:00:05]} 86. Kf5 {[%clk 0:00:06]}  Kg7 {[%clk 0:00:06]} 87. Ke6 {[%clk 0:00:07]}  Kg6 {[%clk 0:00:06]} 88. f5+ {[%clk 0:00:07]}  Kg5 {[%clk 0:00:07]} 89. f6 {[%clk 0:00:07]}  Kf4 {[%clk 0:00:08]} 90. f7 {[%clk 0:00:08]}  Ke3 {[%clk 0:00:09]} 91. f8=Q {[%clk 0:00:08]} 1-0


[Site "https://www.chess.com"]

[Event "Titled Tuesday Blitz February 14 Late 2023"]
[White "EREBUNI91"]
[Black "Lenderman, Aleksandr"]
[BlackFideId "2021285"]
[WhiteElo "2724"]
[BlackElo "2572"]
[Result "0-1"]
[Round "05"]
[TimeControl "180+2"]
[Date "2023.02.14"]
[WhiteClock "0:00:07"]
[BlackClock "0:00:05"]

1. e4 {[%clk 0:03:00]}  c6 {[%clk 0:03:00]} 2. d4 {[%clk 0:03:01]}  g6 {[%clk 0:03:01]} 3. Nc3 {[%clk 0:03:01]}  Bg7 {[%clk 0:03:01]} 4. Be3 {[%clk 0:03:01]}  d5 {[%clk 0:03:01]} 5. Qd2 {[%clk 0:03:00]}  dxe4 {[%clk 0:02:54]} 6. Nxe4 {[%clk 0:03:01]}  Nf6 {[%clk 0:02:52]} 7. Nxf6+ {[%clk 0:02:54]}  exf6 {[%clk 0:02:53]} 8. Bd3 {[%clk 0:02:53]}  O-O {[%clk 0:02:54]} 9. Ne2 {[%clk 0:02:50]}  Na6 {[%clk 0:02:54]} 10. h4 {[%clk 0:02:48]}  Nc7 {[%clk 0:02:48]} 11. h5 {[%clk 0:02:46]}  Nd5 {[%clk 0:02:48]} 12. Bh6 {[%clk 0:02:41]}  g5 {[%clk 0:02:44]} 13. Bxg7 {[%clk 0:02:40]}  Kxg7 {[%clk 0:02:45]} 14. h6+ {[%clk 0:02:38]}  Kh8 {[%clk 0:02:45]} 15. O-O-O {[%clk 0:02:37]}  Re8 {[%clk 0:02:44]} 16. Ng3 {[%clk 0:02:31]}  Nf4 {[%clk 0:02:43]} 17. f3 {[%clk 0:02:26]}  Qxd4 {[%clk 0:02:37]} 18. Bf5 {[%clk 0:02:12]}  Qxd2+ {[%clk 0:02:32]} 19. Rxd2 {[%clk 0:02:12]}  Nd5 {[%clk 0:02:17]} 20. c4 {[%clk 0:02:07]}  Nb6 {[%clk 0:02:12]} 21. b3 {[%clk 0:02:06]}  Be6 {[%clk 0:02:10]} 22. Rhd1 {[%clk 0:02:01]}  a5 {[%clk 0:02:04]} 23. Kb2 {[%clk 0:01:57]}  Bxc4 {[%clk 0:01:58]} 24. Ne4 {[%clk 0:01:46]}  Bd5 {[%clk 0:01:43]} 25. Nxf6 {[%clk 0:01:46]}  Re5 {[%clk 0:01:40]} 26. Bxh7 {[%clk 0:01:37]}  Re6 {[%clk 0:01:35]} 27. Nxd5 {[%clk 0:01:37]}  cxd5 {[%clk 0:01:33]} 28. Bd3 {[%clk 0:01:28]}  Rxh6 {[%clk 0:01:32]} 29. Re2 {[%clk 0:01:28]}  Rh2 {[%clk 0:01:02]} 30. Rde1 {[%clk 0:01:17]}  Kg7 {[%clk 0:00:59]} 31. Bf5 {[%clk 0:01:06]}  d4 {[%clk 0:00:53]} 32. Bh3 {[%clk 0:01:01]}  Nd5 {[%clk 0:00:53]} 33. Rd2 {[%clk 0:00:56]}  Nf4 {[%clk 0:00:52]} 34. Bg4 {[%clk 0:00:55]}  Rxg2 {[%clk 0:00:45]} 35. Rxg2 {[%clk 0:00:51]}  Nxg2 {[%clk 0:00:45]} 36. Re7 {[%clk 0:00:51]}  Nf4 {[%clk 0:00:46]} 37. Rxb7 {[%clk 0:00:43]}  d3 {[%clk 0:00:46]} 38. Rd7 {[%clk 0:00:38]}  Re8 {[%clk 0:00:46]} 39. a3 {[%clk 0:00:35]}  Re2+ {[%clk 0:00:46]} 40. Kc3 {[%clk 0:00:30]}  Rc2+ {[%clk 0:00:42]} 41. Kd4 {[%clk 0:00:30]}  d2 {[%clk 0:00:38]} 42. Ke3 {[%clk 0:00:24]}  Rb2 {[%clk 0:00:39]} 43. b4 {[%clk 0:00:20]}  axb4 {[%clk 0:00:39]} 44. axb4 {[%clk 0:00:21]}  Ng2+ {[%clk 0:00:35]} 45. Ke2 {[%clk 0:00:21]}  Nf4+ {[%clk 0:00:24]} 46. Ke3 {[%clk 0:00:21]}  Rxb4 {[%clk 0:00:25]} 47. Rxd2 {[%clk 0:00:19]}  Kg6 {[%clk 0:00:25]} 48. Rd6+ {[%clk 0:00:17]}  f6 {[%clk 0:00:25]} 49. Ra6 {[%clk 0:00:16]}  Rb5 {[%clk 0:00:21]} 50. Kf2 {[%clk 0:00:15]}  Re5 {[%clk 0:00:20]} 51. Rb6 {[%clk 0:00:13]}  Re2+ {[%clk 0:00:20]} 52. Kf1 {[%clk 0:00:12]}  Rd2 {[%clk 0:00:20]} 53. Ra6 {[%clk 0:00:11]}  Rb2 {[%clk 0:00:13]} 54. Rc6 {[%clk 0:00:11]}  Nd5 {[%clk 0:00:12]} 55. Kg1 {[%clk 0:00:08]}  Ne3 {[%clk 0:00:12]} 56. Rc3 {[%clk 0:00:06]}  Nxg4 {[%clk 0:00:05]} 57. fxg4 {[%clk 0:00:07]}  Rb4 {[%clk 0:00:06]} 58. Rg3 {[%clk 0:00:08]}  Rf4 {[%clk 0:00:07]} 59. Kg2 {[%clk 0:00:07]}  Kf7 {[%clk 0:00:07]} 60. Kh3 {[%clk 0:00:08]}  Ke6 {[%clk 0:00:08]} 61. Ra3 {[%clk 0:00:07]}  Ke5 {[%clk 0:00:08]} 62. Ra6 {[%clk 0:00:06]}  Ke4 {[%clk 0:00:07]} 63. Ra4+ {[%clk 0:00:07]}  Kf3 {[%clk 0:00:08]} 64. Ra3+ {[%clk 0:00:08]}  Kf2 {[%clk 0:00:08]} 65. Ra2+ {[%clk 0:00:08]}  Kg1 {[%clk 0:00:07]} 66. Ra1+ {[%clk 0:00:08]}  Rf1 {[%clk 0:00:07]} 67. Ra3 {[%clk 0:00:07]}  Kh1 {[%clk 0:00:05]} 68. Re3 {[%clk 0:00:06]}  Kg1 {[%clk 0:00:05]} 69. Rg3+ {[%clk 0:00:06]}  Kf2 {[%clk 0:00:05]} 70. Re3 {[%clk 0:00:07]}  Kxe3 {[%clk 0:00:05]} 0-1


[Site "https://www.chess.com"]

[Event "Titled Tuesday Blitz February 14 Late 2023"]
[White "Sanal, Vahap"]
[Black "Cardoso Cardoso, Jose Gabriel"]
[WhiteFideId "6300545"]
[BlackFideId "4430492"]
[WhiteElo "2600"]
[BlackElo "2492"]
[Result "1/2-1/2"]
[Round "05"]
[TimeControl "180+2"]
[Date "2023.02.14"]
[WhiteClock "0:00:16"]
[BlackClock "0:00:16"]

1. g3 {[%clk 0:02:58]}  e5 {[%clk 0:02:54]} 2. c4 {[%clk 0:02:58]}  f5 {[%clk 0:02:46]} 3. Bg2 {[%clk 0:02:57]}  Nf6 {[%clk 0:02:46]} 4. Nc3 {[%clk 0:02:56]}  g6 {[%clk 0:02:47]} 5. e3 {[%clk 0:02:55]}  Bg7 {[%clk 0:02:47]} 6. Nge2 {[%clk 0:02:55]}  d6 {[%clk 0:02:47]} 7. O-O {[%clk 0:02:55]}  c6 {[%clk 0:02:47]} 8. d4 {[%clk 0:02:56]}  O-O {[%clk 0:02:48]} 9. b3 {[%clk 0:02:56]}  a5 {[%clk 0:02:48]} 10. Ba3 {[%clk 0:02:55]}  Re8 {[%clk 0:02:43]} 11. dxe5 {[%clk 0:02:47]}  dxe5 {[%clk 0:02:40]} 12. Na4 {[%clk 0:02:47]}  Bf8 {[%clk 0:02:33]} 13. Bxf8 {[%clk 0:02:36]}  Kxf8 {[%clk 0:02:29]} 14. c5 {[%clk 0:02:29]}  Na6 {[%clk 0:02:17]} 15. Qc1 {[%clk 0:02:16]}  Be6 {[%clk 0:02:00]} 16. Qb2 {[%clk 0:02:10]}  Bf7 {[%clk 0:01:55]} 17. Rfd1 {[%clk 0:01:59]}  Qe7 {[%clk 0:01:53]} 18. h3 {[%clk 0:01:41]}  Nxc5 {[%clk 0:01:43]} 19. Nxc5 {[%clk 0:01:41]}  Qxc5 {[%clk 0:01:43]} 20. Nc3 {[%clk 0:01:42]}  Rad8 {[%clk 0:01:39]} 21. Na4 {[%clk 0:01:42]}  Qe7 {[%clk 0:01:38]} 22. Qc3 {[%clk 0:01:41]}  Rxd1+ {[%clk 0:01:25]} 23. Rxd1 {[%clk 0:01:40]}  Qb4 {[%clk 0:01:26]} 24. Qb2 {[%clk 0:01:16]}  Nd5 {[%clk 0:01:20]} 25. a3 {[%clk 0:01:12]}  Qe7 {[%clk 0:01:20]} 26. e4 {[%clk 0:01:05]}  fxe4 {[%clk 0:01:17]} 27. Bxe4 {[%clk 0:01:05]}  Nf6 {[%clk 0:01:15]} 28. Bg2 {[%clk 0:01:03]}  e4 {[%clk 0:01:08]} 29. Nb6 {[%clk 0:01:03]}  e3 {[%clk 0:00:58]} 30. fxe3 {[%clk 0:00:55]}  Qxe3+ {[%clk 0:00:57]} 31. Kh2 {[%clk 0:00:55]}  Qe5 {[%clk 0:00:45]} 32. Qf2 {[%clk 0:00:54]}  Kg7 {[%clk 0:00:42]} 33. Rf1 {[%clk 0:00:53]}  Re7 {[%clk 0:00:40]} 34. b4 {[%clk 0:00:48]}  axb4 {[%clk 0:00:39]} 35. axb4 {[%clk 0:00:49]}  Bd5 {[%clk 0:00:21]} 36. Nxd5 {[%clk 0:00:43]}  cxd5 {[%clk 0:00:21]} 37. b5 {[%clk 0:00:33]}  d4 {[%clk 0:00:20]} 38. b6 {[%clk 0:00:33]}  Rf7 {[%clk 0:00:16]} 39. Kh1 {[%clk 0:00:29]}  Qd6 {[%clk 0:00:14]} 40. Rd1 {[%clk 0:00:26]}  Nh5 {[%clk 0:00:10]} 41. Qxd4+ {[%clk 0:00:23]}  Qxd4 {[%clk 0:00:10]} 42. Rxd4 {[%clk 0:00:24]}  Nxg3+ {[%clk 0:00:10]} 43. Kh2 {[%clk 0:00:25]}  Nf5 {[%clk 0:00:10]} 44. Rd8 {[%clk 0:00:22]}  Ne3 {[%clk 0:00:05]} 45. Be4 {[%clk 0:00:16]}  Nc4 {[%clk 0:00:04]} 46. Bd5 {[%clk 0:00:16]}  Rf2+ {[%clk 0:00:05]} 47. Kg3 {[%clk 0:00:16]}  Rd2 {[%clk 0:00:05]} 48. Rd7+ {[%clk 0:00:16]}  Kh6 {[%clk 0:00:06]} 49. Rc7 {[%clk 0:00:08]}  Rxd5 {[%clk 0:00:04]} 50. Rxc4 {[%clk 0:00:09]}  Rb5 {[%clk 0:00:05]} 51. h4 {[%clk 0:00:09]}  Rxb6 {[%clk 0:00:05]} 52. Rc7 {[%clk 0:00:10]}  Rb4 {[%clk 0:00:05]} 53. Rd7 {[%clk 0:00:10]}  b5 {[%clk 0:00:05]} 54. Rb7 {[%clk 0:00:10]}  Rb1 {[%clk 0:00:05]} 55. Kg4 {[%clk 0:00:11]}  b4 {[%clk 0:00:05]} 56. Kg3 {[%clk 0:00:12]}  b3 {[%clk 0:00:05]} 57. Kg2 {[%clk 0:00:10]}  b2 {[%clk 0:00:03]} 58. Kh2 {[%clk 0:00:09]}  Kh5 {[%clk 0:00:02]} 59. Rxh7+ {[%clk 0:00:08]}  Kg4 {[%clk 0:00:03]} 60. Rb7 {[%clk 0:00:09]}  Kxh4 {[%clk 0:00:03]} 61. Kg2 {[%clk 0:00:10]}  Kg4 {[%clk 0:00:03]} 62. Rb4+ {[%clk 0:00:10]}  Kf5 {[%clk 0:00:03]} 63. Rb8 {[%clk 0:00:11]}  Ke4 {[%clk 0:00:03]} 64. Rb7 {[%clk 0:00:11]}  Kd4 {[%clk 0:00:03]} 65. Rb8 {[%clk 0:00:12]}  Kc5 {[%clk 0:00:03]} 66. Rc8+ {[%clk 0:00:13]}  Kd6 {[%clk 0:00:03]} 67. Rb8 {[%clk 0:00:13]}  Kc7 {[%clk 0:00:04]} 68. Rb3 {[%clk 0:00:14]}  Kc6 {[%clk 0:00:05]} 69. Rb4 {[%clk 0:00:14]}  g5 {[%clk 0:00:04]} 70. Rb3 {[%clk 0:00:14]}  Kc5 {[%clk 0:00:05]} 71. Rb8 {[%clk 0:00:14]}  Kc4 {[%clk 0:00:05]} 72. Rc8+ {[%clk 0:00:15]}  Kd3 {[%clk 0:00:06]} 73. Rd8+ {[%clk 0:00:15]}  Ke3 {[%clk 0:00:06]} 74. Re8+ {[%clk 0:00:16]}  Kf4 {[%clk 0:00:07]} 75. Rb8 {[%clk 0:00:16]}  Kf5 {[%clk 0:00:04]} 76. Rb5+ {[%clk 0:00:16]}  Kg4 {[%clk 0:00:04]} 77. Rb4+ {[%clk 0:00:17]}  Kh5 {[%clk 0:00:05]} 78. Rb5 {[%clk 0:00:17]}  Kh4 {[%clk 0:00:03]} 79. Rb8 {[%clk 0:00:17]}  Ra1 {[%clk 0:00:02]} 80. Rxb2 {[%clk 0:00:17]}  Ra4 {[%clk 0:00:03]} 81. Rb8 {[%clk 0:00:17]}  Ra2+ {[%clk 0:00:02]} 82. Kg1 {[%clk 0:00:17]}  Ra3 {[%clk 0:00:03]} 83. Kg2 {[%clk 0:00:16]}  Kg4 {[%clk 0:00:03]} 84. Rb4+ {[%clk 0:00:17]}  Kh5 {[%clk 0:00:04]} 85. Rc4 {[%clk 0:00:17]}  Ra2+ {[%clk 0:00:03]} 86. Kg3 {[%clk 0:00:18]}  Ra3+ {[%clk 0:00:04]} 87. Kh2 {[%clk 0:00:18]}  g4 {[%clk 0:00:04]} 88. Rd4 {[%clk 0:00:19]}  Kh4 {[%clk 0:00:04]} 89. Rb4 {[%clk 0:00:16]}  Ra2+ {[%clk 0:00:05]} 90. Kg1 {[%clk 0:00:16]}  Kh3 {[%clk 0:00:05]} 91. Rb1 {[%clk 0:00:13]}  g3 {[%clk 0:00:06]} 92. Rc1 {[%clk 0:00:14]}  Re2 {[%clk 0:00:06]} 93. Rb1 {[%clk 0:00:13]}  Rh2 {[%clk 0:00:06]} 94. Ra1 {[%clk 0:00:13]}  Rg2+ {[%clk 0:00:07]} 95. Kh1 {[%clk 0:00:13]}  Rb2 {[%clk 0:00:08]} 96. Kg1 {[%clk 0:00:13]}  Rb7 {[%clk 0:00:08]} 97. Rc1 {[%clk 0:00:13]}  Rd7 {[%clk 0:00:08]} 98. Ra1 {[%clk 0:00:13]}  Re7 {[%clk 0:00:09]} 99. Rb1 {[%clk 0:00:13]}  Ra7 {[%clk 0:00:09]} 100. Rc1 {[%clk 0:00:13]}  Rb7 {[%clk 0:00:09]} 101. Ra1 {[%clk 0:00:13]}  Rd7 {[%clk 0:00:09]} 102. Rc1 {[%clk 0:00:14]}  Rd2 {[%clk 0:00:09]} 103. Rb1 {[%clk 0:00:14]}  Rg2+ {[%clk 0:00:10]} 104. Kh1 {[%clk 0:00:14]}  Rc2 {[%clk 0:00:11]} 105. Kg1 {[%clk 0:00:14]}  Rf2 {[%clk 0:00:10]} 106. Ra1 {[%clk 0:00:14]}  Rf5 {[%clk 0:00:10]} 107. Rb1 {[%clk 0:00:14]}  Re5 {[%clk 0:00:10]} 108. Ra1 {[%clk 0:00:15]}  Rc5 {[%clk 0:00:10]} 109. Rb1 {[%clk 0:00:15]}  Rc2 {[%clk 0:00:11]} 110. Ra1 {[%clk 0:00:15]}  Rb2 {[%clk 0:00:10]} 111. Rc1 {[%clk 0:00:15]}  Ra2 {[%clk 0:00:11]} 112. Rd1 {[%clk 0:00:15]}  Rb2 {[%clk 0:00:11]} 113. Rc1 {[%clk 0:00:16]}  Rg2+ {[%clk 0:00:11]} 114. Kh1 {[%clk 0:00:16]}  Rh2+ {[%clk 0:00:12]} 115. Kg1 {[%clk 0:00:16]}  Rf2 {[%clk 0:00:12]} 116. Rb1 {[%clk 0:00:16]}  Kg4 {[%clk 0:00:13]} 117. Rb4+ {[%clk 0:00:16]}  Rf4 {[%clk 0:00:14]} 118. Rb1 {[%clk 0:00:17]}  Rd4 {[%clk 0:00:14]} 119. Ra1 {[%clk 0:00:17]}  Re4 {[%clk 0:00:14]} 120. Rb1 {[%clk 0:00:17]}  Ra4 {[%clk 0:00:14]} 121. Rb8 {[%clk 0:00:13]}  Ra1+ {[%clk 0:00:14]} 122. Kg2 {[%clk 0:00:13]}  Ra2+ {[%clk 0:00:14]} 123. Kg1 {[%clk 0:00:14]}  Kf3 {[%clk 0:00:14]} 124. Rf8+ {[%clk 0:00:14]}  Kg4 {[%clk 0:00:15]} 125. Rg8+ {[%clk 0:00:14]}  Kf3 {[%clk 0:00:15]} 126. Rf8+ {[%clk 0:00:15]}  Kg4 {[%clk 0:00:16]} 127. Rg8+ {[%clk 0:00:15]}  Kf3 {[%clk 0:00:16]} 128. Rf8+ {[%clk 0:00:16]} 1/2-1/2


[Site "https://www.chess.com"]

[Event "Titled Tuesday Blitz February 14 Late 2023"]
[White "Alex_Sahakyan2006"]
[Black "Zhigalko, Sergei"]
[BlackFideId "13502956"]
[WhiteElo "2696"]
[BlackElo "2572"]
[Result "0-1"]
[Round "05"]
[TimeControl "180+2"]
[Date "2023.02.14"]
[WhiteClock "0:00:06"]
[BlackClock "0:00:43"]

1. d4 {[%clk 0:03:00]}  Nf6 {[%clk 0:02:59]} 2. c4 {[%clk 0:03:00]}  e6 {[%clk 0:03:00]} 3. Nf3 {[%clk 0:03:00]}  b6 {[%clk 0:03:00]} 4. g3 {[%clk 0:03:00]}  Ba6 {[%clk 0:03:00]} 5. Qc2 {[%clk 0:03:00]}  Bb4+ {[%clk 0:03:00]} 6. Bd2 {[%clk 0:03:01]}  Be7 {[%clk 0:02:59]} 7. e4 {[%clk 0:03:01]}  d5 {[%clk 0:02:59]} 8. cxd5 {[%clk 0:03:02]}  Bxf1 {[%clk 0:02:59]} 9. Kxf1 {[%clk 0:03:03]}  exd5 {[%clk 0:03:00]} 10. e5 {[%clk 0:03:03]}  Ne4 {[%clk 0:03:01]} 11. Kg2 {[%clk 0:03:04]}  Qd7 {[%clk 0:03:00]} 12. Nc3 {[%clk 0:03:03]}  Nxd2 {[%clk 0:03:01]} 13. Qxd2 {[%clk 0:03:01]}  Nc6 {[%clk 0:03:01]} 14. h4 {[%clk 0:03:00]}  Nd8 {[%clk 0:03:01]} 15. Ne2 {[%clk 0:02:55]}  Ne6 {[%clk 0:02:59]} 16. Nf4 {[%clk 0:02:54]}  O-O-O {[%clk 0:03:00]} 17. Nxe6 {[%clk 0:02:49]}  fxe6 {[%clk 0:02:59]} 18. Qd3 {[%clk 0:02:47]}  Kb7 {[%clk 0:02:59]} 19. Rhc1 {[%clk 0:02:39]}  h6 {[%clk 0:02:54]} 20. Qg6 {[%clk 0:02:36]}  Rdf8 {[%clk 0:02:21]} 21. Rc2 {[%clk 0:02:35]}  Bd8 {[%clk 0:02:20]} 22. Rac1 {[%clk 0:02:26]}  Rf5 {[%clk 0:02:18]} 23. Ne1 {[%clk 0:01:59]}  h5 {[%clk 0:02:09]} 24. g4 {[%clk 0:00:51]}  hxg4 {[%clk 0:02:08]} 25. Rc6 {[%clk 0:00:48]}  Rh6 {[%clk 0:02:03]} 26. Qxg4 {[%clk 0:00:48]}  Rxh4 {[%clk 0:01:40]} 27. Qd1 {[%clk 0:00:48]}  Rg5+ {[%clk 0:01:16]} 28. Kf1 {[%clk 0:00:44]}  Rh1+ {[%clk 0:01:13]} 29. Ke2 {[%clk 0:00:43]}  Rgg1 {[%clk 0:01:14]} 30. Qa4 {[%clk 0:00:24]}  Rxe1+ {[%clk 0:01:13]} 31. Kd3 {[%clk 0:00:24]}  Qf7 {[%clk 0:00:52]} 32. R6c3 {[%clk 0:00:07]}  Qf5+ {[%clk 0:00:43]} 33. Kd2 {[%clk 0:00:06]}  Qxf2+ {[%clk 0:00:43]} 0-1


[Site "https://www.chess.com"]

[Event "Titled Tuesday Blitz February 14 Late 2023"]
[White "Kleiman, Jake"]
[Black "Acor, Corey"]
[WhiteFideId "2020041"]
[BlackFideId "2024861"]
[WhiteElo "2399"]
[BlackElo "2216"]
[Result "0-1"]
[Round "05"]
[TimeControl "180+2"]
[Date "2023.02.14"]
[WhiteClock "0:00:11"]
[BlackClock "0:00:38"]

1. e4 {[%clk 0:03:00]}  e5 {[%clk 0:02:58]} 2. Nf3 {[%clk 0:03:01]}  Nc6 {[%clk 0:02:56]} 3. Bc4 {[%clk 0:03:02]}  Bc5 {[%clk 0:02:55]} 4. c3 {[%clk 0:03:02]}  Nf6 {[%clk 0:02:53]} 5. d3 {[%clk 0:03:02]}  d6 {[%clk 0:02:50]} 6. Bb3 {[%clk 0:03:02]}  Bb6 {[%clk 0:02:46]} 7. Nbd2 {[%clk 0:03:02]}  O-O {[%clk 0:02:45]} 8. O-O {[%clk 0:03:02]}  Be6 {[%clk 0:02:40]} 9. Bc2 {[%clk 0:03:01]}  d5 {[%clk 0:02:38]} 10. h3 {[%clk 0:03:01]}  h6 {[%clk 0:02:36]} 11. Re1 {[%clk 0:03:01]}  Re8 {[%clk 0:02:35]} 12. Qe2 {[%clk 0:03:00]}  Qd7 {[%clk 0:02:33]} 13. Nf1 {[%clk 0:03:00]}  Rad8 {[%clk 0:02:28]} 14. N3h2 {[%clk 0:02:59]}  Ne7 {[%clk 0:02:22]} 15. Qf3 {[%clk 0:02:56]}  Kh7 {[%clk 0:02:14]} 16. Ng3 {[%clk 0:02:36]}  dxe4 {[%clk 0:02:09]} 17. dxe4 {[%clk 0:02:32]}  a5 {[%clk 0:02:09]} 18. Nf5 {[%clk 0:02:23]}  Nxf5 {[%clk 0:01:59]} 19. exf5 {[%clk 0:02:24]}  Bd5 {[%clk 0:02:00]} 20. Qg3 {[%clk 0:02:21]}  e4 {[%clk 0:02:00]} 21. Qf4 {[%clk 0:02:09]}  c6 {[%clk 0:02:00]} 22. Ng4 {[%clk 0:02:09]}  Nh5 {[%clk 0:01:38]} 23. Qd2 {[%clk 0:02:00]}  Qxf5 {[%clk 0:01:35]} 24. Ne3 {[%clk 0:01:37]}  Qg6 {[%clk 0:01:35]} 25. Qe2 {[%clk 0:00:42]}  f5 {[%clk 0:01:25]} 26. Nxd5 {[%clk 0:00:28]}  cxd5 {[%clk 0:01:26]} 27. Qb5 {[%clk 0:00:22]}  f4 {[%clk 0:01:18]} 28. c4 {[%clk 0:00:16]}  f3 {[%clk 0:01:11]} 29. g4 {[%clk 0:00:15]}  Qd6 {[%clk 0:00:39]} 30. Qxd5 {[%clk 0:00:11]}  Qg3+ {[%clk 0:00:38]} 0-1


[Site "https://www.chess.com"]